bitfinex/quotes_SOLUSD_20251106
["timestamp","ask_amount","ask_price","bid_price","bid_amount"]
[1762463081551,9.78882769,155.42,155.4,8.13120255]
[1762463081718,9.78882769,155.4,155.39,8.13120255]
[1762463082051,9.78882769,155.4,155.37,15.2274515]
[1762463082256,9.78882769,155.4,155.39,8.13120255]
[1762463082422,9.78882769,155.4,155.39,8.79120255]
[1762463082613,9.78882769,155.4,155.39,15.2266231]
[1762463082814,7.72,155.41,155.39,15.2266231]
[1762463083024,17.50882769,155.41,155.4,8.13120255]
[1762463083540,7.72,155.45,155.4,8.79120255]
[1762463083746,7.72,155.45,155.41,0.66]
[1762463083747,17.50882769,155.45,155.41,0.66]
[1762463083929,17.50882769,155.45,155.42,8.13120255]
[1762463084741,17.50882769,155.45,155.42,14.56527348]
[1762463084916,9.78882769,155.44,155.41,8.13120255]
[1762463085121,9.78882769,155.44,155.4,14.56611669]
[1762463085340,9.78882769,155.44,155.4,15.22611669]
[1762463085543,18.51003024,155.44,155.39,14.56649612]
[1762463085720,10.37882769,155.44,155.4,8.13120255]
[1762463086125,9.78882769,155.44,155.4,8.13120255]
[1762463086539,9.78882769,155.44,155.41,8.13120255]
[1762463086725,9.78882769,155.44,155.41,14.56572746]
[1762463087046,17.50882769,155.45,155.42,8.13120255]
[1762463087239,9.78882769,155.44,155.42,8.13120255]
[1762463087724,7.72,155.45,155.42,8.13120255]
[1762463088039,9.78882769,155.47,155.44,8.13120255]
[1762463088215,9.78882769,155.45,155.43,0.66]
[1762463088417,9.78882769,155.45,155.43,8.79120255]
[1762463088655,0.59,155.44,155.4,6.43486769]
[1762463088948,9.78882769,155.42,155.39,6.43531232]
[1762463089768,18.51003024,155.42,155.37,14.56736593]
[1762463089924,17.92003024,155.4,155.35,8.79120255]
[1762463090120,9.78882769,155.38,155.37,8.13120255]
[1762463090322,17.48882769,155.38,155.37,8.13120255]
[1762463090528,17.48882769,155.38,155.37,8.79120255]
[1762463090924,17.48882769,155.38,155.37,15.2274515]
[1762463091247,9.78882769,155.43,155.37,15.2274515]
[1762463091451,7.7,155.42,155.39,8.13120255]
[1762463091651,9.78882769,155.41,155.37,14.5674515]
[1762463091835,9.78882769,155.41,155.37,15.2274515]
[1762463092025,9.78882769,155.41,155.37,14.5674515]
[1762463092422,17.92003024,155.39,155.34,8.13120255]
[1762463092623,17.92003024,155.39,155.33,0.7]
[1762463092624,17.92003024,155.37,155.32,8.13120255]
[1762463093026,24.94659943,155.37,155.32,8.13120255]
[1762463093536,9.78882769,155.35,155.31,8.13120255]
[1762463093732,9.78882769,155.33,155.27,0.7]
[1762463094051,0.59,155.38,155.32,8.13120255]
[1762463094253,0.59,155.38,155.28,0.7]
[1762463094254,17.48882769,155.37,155.33,8.13120255]
[1762463094481,9.78882769,155.35,155.31,0.7]
[1762463094631,9.78882769,155.33,155.32,8.13120255]
[1762463094835,7.7,155.34,155.32,8.13120255]
[1762463095143,7.7,155.34,155.33,8.83120255]
[1762463096134,7.7,155.34,155.3,8.83120255]
[1762463097148,7.7,155.34,155.31,8.13120255]
[1762463097557,7.7,155.34,155.3,15.27031249]
[1762463097858,7.7,155.33,155.3,15.27031249]
[1762463098233,7.7,155.33,155.31,8.13120255]
[1762463099165,7.7,155.33,155.3,8.83120255]
[1762463099560,9.78882769,155.32,155.3,8.13120255]
[1762463099727,9.78882769,155.32,155.29,8.13120255]
[1762463099935,9.78882769,155.32,155.28,8.13120255]
[1762463100131,7.7,155.33,155.29,8.13120255]
[1762463100363,8.13120255,155.3,155.17,32.42129022]
[1762463100555,25.62003024,155.29,155.24,8.13120255]
[1762463100732,9.78882769,155.27,155.25,8.83120255]
[1762463100933,17.48882769,155.26,155.25,8.13120255]
[1762463101234,7.7,155.27,155.25,14.57242638]
[1762463101465,9.78882769,155.33,155.29,20.592]
[1762463101666,5.54,155.33,155.32,8.13120255]
[1762463101832,5.54,155.33,155.3,0.7]
[1762463102032,5.54,155.33,155.32,8.13120255]
[1762463102542,9.78882769,155.38,155.32,8.83120255]
[1762463102744,7.7,155.39,155.36,8.13120255]
[1762463103140,9.78882769,155.38,155.36,8.13120255]
[1762463103355,10.37882769,155.38,155.34,8.13120255]
[1762463103558,0.59,155.37,155.34,8.13120255]
[1762463103874,9.78882769,155.35,155.34,8.13120255]
[1762463104246,9.78882769,155.35,155.33,8.13120255]
[1762463104442,9.78882769,155.35,155.32,8.13120255]
[1762463104641,10.37882769,155.35,155.32,8.13120255]
[1762463104844,17.92003024,155.33,155.25,0.7]
[1762463105050,24.36000215,155.29,155.24,8.13120255]
[1762463105267,9.78882769,155.27,155.23,8.33120255]
[1762463105466,10.37882769,155.27,155.23,0.2]
[1762463105776,9.78882769,155.25,155.23,0.2]
[1762463105950,26.21003024,155.24,155.23,0.2]
[1762463106150,27.01523508,155.24,155.23,0.2]
[1762463106357,26.21003024,155.24,155.23,0.2]
[1762463106550,47.60723508,155.24,155.23,0.2]
[1762463107068,54.04887383,155.24,155.23,0.2]
[1762463107272,9.78882769,155.23,155.17,0.2]
[1762463107450,17.92003024,155.21,155.17,0.2]
[1762463107657,9.78882769,155.2,155.17,0.2]
[1762463107855,17.48882769,155.2,155.17,0.2]
[1762463108241,7.7,155.19,155.18,8.13120255]
[1762463108464,7.7,155.19,155.17,0.2]
[1762463108671,8.29,155.19,155.17,0.2]
[1762463108871,7.7,155.19,155.17,0.2]
[1762463109049,9.78882769,155.21,155.17,8.33120255]
[1762463109243,8.72120255,155.28,155.2,8.13120255]
[1762463109472,28.292,155.27,155.23,8.13120255]
[1762463109771,28.292,155.27,155.24,8.13120255]
[1762463109955,7.7,155.27,155.25,8.13120255]
[1762463110157,9.78882769,155.26,155.24,8.13120255]
[1762463111067,9.78882769,155.26,155.25,8.13120255]
[1762463111447,9.78882769,155.26,155.25,14.57242638]
[1762463111783,9.78882769,155.26,155.24,8.13120255]
[1762463112077,10.37882769,155.26,155.23,8.13120255]
[1762463112541,9.78882769,155.24,155.2,8.13120255]
[1762463112852,9.78882769,155.22,155.19,6.44367203]
[1762463113051,9.78882769,155.26,155.22,6.44246875]
[1762463113250,9.78882769,155.24,155.21,8.13120255]
[1762463114055,9.78882769,155.24,155.2,8.83120255]
[1762463114255,9.78882769,155.24,155.21,8.13120255]
[1762463115761,9.78882769,155.22,155.19,8.13120255]
[1762463115968,9.78882769,155.2,155.18,8.13120255]
[1762463116476,9.78882769,155.2,155.17,6.64445255]
[1762463116477,10.37882769,155.2,155.17,0.2]
[1762463116679,17.92003024,155.18,155.17,0.2]
[1762463116976,9.78882769,155.2,155.17,0.2]
[1762463117174,23.95295708,155.18,155.17,0.2]
[1762463117582,32.67415963,155.18,155.17,0.2]
[1762463117746,26.23003024,155.18,155.17,0.2]
[1762463117950,18.09882769,155.18,155.17,0.2]
[1762463118452,24.54295708,155.18,155.17,0.2]
[1762463118994,24.54295708,155.18,155.13,0.2]
[1762463118995,33.4796758,155.18,155.13,0.2]
[1762463119283,44.95782113,155.14,155.13,0.2]
[1762463119577,53.48354499,155.14,155.13,0.2]
[1762463119765,69.59802223,155.14,155.05,14.58045164]
[1762463119968,9.78882769,155.09,155.05,15.28045164]
[1762463120173,21.3977758,155.13,155.08,8.13120255]
[1762463120346,8.13120255,155.11,155.06,8.13120255]
[1762463120553,8.13120255,155.1,155.05,8.13120255]
[1762463120781,7.72,155.09,155.05,8.13120255]
[1762463120973,7.72,155.09,155.05,8.83120255]
[1762463121154,7.72,155.09,155.06,14.58031902]
[1762463121480,7.72,155.09,155.06,8.83120255]
[1762463121859,0.39,155.08,155.01,0.2]
[1762463122060,9.78882769,155.04,155.01,0.2]
[1762463122258,7.72,155.03,155.01,0.2]
[1762463123055,9.78882769,155.02,155.01,0.2]
[1762463123284,17.43595579,155.02,155.01,0.2]
[1762463123783,46.15915834,155.02,155.01,0.2]
[1762463124282,30.38082769,155.02,155.01,0.2]
[1762463124458,17.50882769,155.02,155.01,9.02120255]
[1762463124658,17.50882769,155.02,155.01,0.2]
[1762463124853,26.8363778,155.02,155.01,0.2]
[1762463125088,9.78882769,154.96,154.94,8.13120255]
[1762463125271,9.78882769,154.94,154.9,0.69]
[1762463125467,9.78882769,154.94,154.93,8.13120255]
[1762463125673,9.78882769,154.94,154.93,8.82120255]
[1762463126378,9.78882769,154.94,154.9,0.69]
[1762463126677,9.78882769,154.94,154.9,8.82120255]
[1762463126976,9.78882769,154.94,154.91,8.13120255]
[1762463127177,9.78882769,154.94,154.91,0.69]
[1762463128398,9.78882769,154.94,154.92,8.13120255]
[1762463128562,9.78882769,154.94,154.93,8.13120255]
[1762463129054,9.78882769,154.94,154.93,8.82120255]
[1762463129255,9.78882769,154.94,154.91,8.13120255]
[1762463129458,9.78882769,154.94,154.9,0.69]
[1762463129873,9.78882769,154.96,154.93,8.13120255]
[1762463130071,9.78882769,154.96,154.9,0.69]
[1762463130072,9.78882769,154.94,154.9,0.69]
[1762463130289,9.78882769,154.94,154.92,8.13120255]
[1762463130464,7.72,154.95,154.93,8.82120255]
[1762463130661,7.72,154.95,154.94,8.13120255]
[1762463130875,7.72,154.95,154.94,8.82120255]
[1762463131583,17.92003024,155.04,154.94,31.41059198]
[1762463131766,9.78882769,155.02,154.99,8.13120255]
[1762463132158,9.78882769,155.02,155.0,8.82120255]
[1762463132488,9.78882769,155.02,155.0,0.69]
[1762463132688,9.78882769,155.02,155.01,8.13120255]
[1762463133361,9.78882769,155.02,154.99,8.13120255]
[1762463133689,9.78882769,155.02,155.0,8.13120255]
[1762463134277,9.78882769,155.02,155.01,8.82120255]
[1762463134886,14.57884448,155.1,155.01,8.82120255]
[1762463135065,14.57884448,155.1,155.05,8.13120255]
[1762463135066,17.50882769,155.09,155.05,8.13120255]
[1762463135268,17.50882769,155.09,155.04,8.13120255]
[1762463135269,9.78882769,155.07,155.04,8.13120255]
[1762463135584,14.57964125,155.08,155.03,8.13120255]
[1762463135585,9.78882769,155.05,155.03,8.13120255]
[1762463135786,9.78882769,155.05,155.04,8.13120255]
[1762463136096,9.78882769,155.02,154.95,0.69]
[1762463136266,9.78882769,155.0,154.96,8.13120255]
[1762463136468,9.78882769,155.0,154.96,5.2027262]
[1762463136682,9.78882769,155.0,154.96,5.8927262]
[1762463137085,14.99155389,155.0,154.96,0.69]
[1762463137291,14.99155389,155.0,154.95,5.2027262]
[1762463137468,9.78882769,154.98,154.94,12.36680888]
[1762463137662,9.78882769,154.96,154.95,5.2027262]
[1762463137890,17.50882769,154.96,154.95,5.9127262]
[1762463138183,7.72,154.96,154.95,5.9127262]
[1762463138386,7.72,154.96,154.95,0.71]
[1762463138688,7.0,154.96,154.95,5.9127262]
[1762463139297,7.72,154.98,154.95,5.9127262]
[1762463139467,7.72,154.98,154.97,5.2027262]
[1762463139995,7.72,154.98,154.97,5.9127262]
[1762463140789,9.78882769,155.02,154.97,5.9127262]
[1762463141090,17.50882769,155.01,155.0,5.2027262]
[1762463141469,17.50882769,155.01,155.0,12.3643391]
[1762463141671,17.50882769,155.01,154.97,7.16278967]
[1762463141978,17.50882769,155.01,154.98,5.2027262]
[1762463142176,9.78882769,155.0,154.98,5.2027262]
[1762463142381,10.50882769,155.0,154.96,11.65597974]
[1762463142771,9.78882769,155.0,154.96,11.65597974]
[1762463142972,9.78882769,155.0,154.97,5.2027262]
[1762463143369,9.78882769,155.0,154.96,0.71]
[1762463143571,9.78882769,155.0,154.96,5.9127262]
[1762463143773,9.78882769,155.0,154.98,5.2027262]
[1762463144290,9.78882769,155.0,154.96,0.71]
[1762463144291,9.78882769,155.0,154.99,5.2027262]
[1762463144523,7.72,155.01,154.99,5.2027262]
[1762463144696,17.50882769,155.03,155.0,5.9127262]
[1762463144891,17.50882769,155.03,154.98,5.2027262]
[1762463144892,8.44,155.03,154.98,21.302]
[1762463145077,9.78882769,155.01,154.99,5.2027262]
[1762463145283,7.72,155.0,154.99,5.2027262]
[1762463145897,7.72,155.0,154.99,11.65475536]
[1762463147685,7.72,155.0,154.99,6.45202916]
[1762463147891,7.72,155.0,154.99,11.65475536]
[1762463149594,7.72,155.0,154.99,12.36475536]
[1762463151494,7.72,155.03,154.99,28.49482826]
[1762463151699,17.50882769,155.03,155.02,5.2027262]
[1762463152868,9.78882769,155.09,155.02,5.8627262]
[1762463153075,9.78882769,155.07,155.05,5.2027262]
[1762463153396,9.78882769,155.07,155.04,5.2027262]
[1762463153900,10.45882769,155.07,155.04,11.65267291]
[1762463154403,9.78882769,155.07,155.06,5.2027262]
[1762463154782,9.78882769,155.07,155.06,5.8627262]
[1762463154985,7.72,155.08,155.06,5.8627262]
[1762463155188,17.50882769,155.08,155.07,5.8627262]
[1762463155793,0.67,155.13,155.07,12.31142678]
[1762463155980,0.67,155.13,155.1,5.2027262]
[1762463155981,7.72,155.12,155.1,5.2027262]
[1762463156194,9.78882769,155.11,155.09,5.2027262]
[1762463157414,9.78882769,155.11,155.1,5.2027262]
[1762463158081,9.78882769,155.11,155.1,11.65017945]
[1762463158581,7.72,155.11,155.1,28.42881258]
[1762463159989,3.56809737,155.18,155.1,28.42881258]
[1762463160313,9.78882769,155.14,155.08,5.2027262]
[1762463160481,9.78882769,155.12,155.05,0.66]
[1762463160690,17.50882769,155.11,155.1,5.2027262]
[1762463161387,7.72,155.11,155.1,5.2027262]
[1762463161712,7.72,155.11,155.1,5.8627262]
[1762463161900,9.78882769,155.16,155.11,22.56463154]
[1762463162103,7.72,155.17,155.15,5.2027262]
[1762463162414,7.72,155.17,155.16,5.2027262]
[1762463163117,0.2,155.18,155.16,0.66]
[1762463163330,0.2,155.18,155.16,5.2027262]
[1762463163506,7.72,155.17,155.14,20.592]
[1762463163820,7.72,155.17,155.16,6.44496004]
[1762463164191,7.72,155.17,155.16,7.10496004]
[1762463164394,8.39,155.17,155.14,20.592]
[1762463164608,9.78882769,155.16,155.14,5.2027262]
[1762463164812,7.72,155.17,155.15,5.8627262]
[1762463164997,7.72,155.17,155.16,5.2027262]
[1762463165798,7.72,155.17,155.16,11.64768624]
[1762463167510,7.72,155.17,155.16,6.44496004]
[1762463167717,0.2,155.18,155.17,25.7947262]
[1762463167890,0.2,155.18,155.17,26.4547262]
[1762463169305,0.2,155.18,155.17,32.89927089]
[1762463175917,9.78882769,155.24,155.17,81.23335608]
[1762463176132,9.78882769,155.24,155.23,5.2027262]
[1762463176308,0.2,155.27,155.23,5.2027262]
[1762463176507,0.2,155.27,155.26,5.2027262]
[1762463177305,0.2,155.27,155.26,11.64353516]
[1762463178006,0.2,155.27,155.26,5.2027262]
[1762463178209,0.2,155.27,155.21,0.66]
[1762463178210,0.87,155.27,155.21,0.66]
[1762463178412,9.78882769,155.26,155.23,5.2027262]
[1762463178613,15.66155389,155.26,155.21,5.2027262]
[1762463178809,15.66155389,155.26,155.22,5.2027262]
[1762463178810,0.67,155.25,155.22,5.2027262]
[1762463179015,9.78882769,155.24,155.23,5.2027262]
[1762463179214,9.78882769,155.24,155.23,11.64477992]
[1762463179433,0.67,155.24,155.22,5.2027262]
[1762463179819,0.67,155.24,155.23,5.2027262]
[1762463180018,0.2,155.27,155.23,5.2027262]
[1762463180202,0.2,155.27,155.26,5.2027262]
[1762463180408,0.87,155.27,155.24,5.2027262]
[1762463180712,0.87,155.27,155.25,5.2027262]
[1762463181114,0.67,155.26,155.24,5.2027262]
[1762463181425,0.67,155.26,155.22,11.64505304]
[1762463181426,18.15882769,155.26,155.22,11.64505304]
[1762463181838,9.78882769,155.24,155.22,11.64505304]
[1762463182218,7.7,155.26,155.22,11.64505304]
[1762463182419,0.67,155.24,155.2,6.44289014]
[1762463182728,0.67,155.24,155.2,11.64561634]
[1762463183236,0.67,155.24,155.21,5.2027262]
[1762463184546,0.67,155.24,155.22,5.2027262]
[1762463185734,0.67,155.24,155.22,11.64507162]
[1762463186136,0.67,155.24,155.22,5.2027262]
[1762463186339,0.67,155.24,155.23,5.2027262]
[1762463186835,9.78882769,155.25,155.23,5.2027262]
[1762463187039,9.78882769,155.25,155.22,5.2027262]
[1762463187040,0.69,155.24,155.22,5.2027262]
[1762463187724,7.13169027,155.24,155.2,5.2027262]
[1762463187919,12.33441647,155.24,155.19,5.2027262]
[1762463188114,5.2027262,155.22,155.17,11.6472029]
[1762463188309,9.78882769,155.2,155.17,11.64720174]
[1762463188509,9.78882769,155.2,155.18,5.2027262]
[1762463188820,10.47882769,155.2,155.18,5.2027262]
[1762463189024,9.78882769,155.2,155.19,5.2027262]
[1762463189639,10.47882769,155.2,155.18,5.2027262]
[1762463189944,9.78882769,155.2,155.18,11.64684232]
[1762463190115,10.47882769,155.2,155.18,11.64684232]
[1762463190443,10.47882769,155.2,155.19,5.2027262]
[1762463190936,7.7,155.21,155.19,5.2027262]
[1762463191115,17.48882769,155.21,155.2,5.2027262]
[1762463191438,17.48882769,155.21,155.19,5.2027262]
[1762463191652,0.2,155.27,155.2,11.64602516]
[1762463191943,0.2,155.27,155.26,5.2027262]
[1762463192132,0.2,155.27,155.21,0.67]
[1762463192440,9.98882769,155.27,155.26,5.2027262]
[1762463192626,10.67882769,155.27,155.25,5.2027262]
[1762463192829,10.47882769,155.26,155.25,5.2027262]
[1762463193218,9.78882769,155.26,155.25,5.2027262]
[1762463193418,9.98882769,155.27,155.25,5.2027262]
[1762463193613,9.98882769,155.27,155.26,5.2027262]
[1762463194732,0.2,155.27,155.26,5.2027262]
[1762463194935,0.2,155.27,155.26,5.8727262]
[1762463195441,0.69,155.33,155.26,5.8727262]
[1762463195615,7.7,155.32,155.31,5.2027262]
[1762463196017,7.7,155.32,155.3,5.2027262]
[1762463196232,7.7,155.32,155.31,5.2027262]
[1762463196847,0.69,155.33,155.31,5.2027262]
[1762463197066,7.7,155.32,155.31,5.2027262]
[1762463197252,7.7,155.32,155.3,5.2027262]
[1762463197847,7.7,155.32,155.28,0.67]
[1762463197848,7.7,155.32,155.31,5.2027262]
[1762463198253,9.78882769,155.37,155.31,5.8727262]
[1762463198422,9.78882769,155.37,155.34,8.1363881]
[1762463198423,7.7,155.36,155.34,8.1363881]
[1762463199122,7.7,155.36,155.35,8.1363881]
[1762463199432,0.1,155.4,155.35,8.1363881]
[1762463199620,0.1,155.4,155.39,8.1363881]
[1762463199823,0.1,155.4,155.39,14.57180865]
[1762463201070,0.1,155.4,155.39,15.24180865]
[1762463203360,0.1,155.4,155.38,8.1363881]
[1762463203559,10.56882769,155.4,155.37,14.57261499]
[1762463203934,10.56882769,155.4,155.37,6.43622689]
[1762463204135,0.68,155.39,155.36,14.57294623]
[1762463204335,9.78882769,155.38,155.36,14.57294623]
[1762463204766,8.38,155.37,155.35,20.592]
[1762463205069,9.78882769,155.36,155.33,14.57429449]
[1762463205244,10.46882769,155.36,155.32,8.1363881]
[1762463205443,10.46882769,155.36,155.31,20.592]
[1762463205444,9.78882769,155.34,155.31,8.1363881]
[1762463205645,7.7,155.33,155.3,24.23400142]
[1762463205840,7.7,155.33,155.31,14.575045]
[1762463206249,7.7,155.33,155.32,8.1363881]
[1762463207959,7.7,155.34,155.32,8.1363881]
[1762463208257,7.7,155.34,155.33,8.1363881]
[1762463209366,7.7,155.34,155.33,14.57429449]
[1762463209751,7.7,155.34,155.31,20.592]
[1762463209943,8.38,155.34,155.32,8.1363881]
[1762463210345,7.7,155.34,155.32,8.1363881]
[1762463210561,7.7,155.34,155.3,27.03115003]
[1762463210765,9.78882769,155.33,155.31,8.1363881]
[1762463210957,9.78882769,155.33,155.3,51.26541321]
[1762463211670,9.78882769,155.33,155.3,35.16753813]
[1762463212176,9.78882769,155.33,155.31,8.1363881]
[1762463212671,0.69,155.32,155.3,20.592]
[1762463212846,7.7,155.31,155.3,20.592]
[1762463213172,9.78882769,155.3,155.28,8.1363881]
[1762463213346,9.78882769,155.3,155.29,8.1363881]
[1762463213549,9.78882769,155.3,155.28,8.1363881]
[1762463214255,17.48882769,155.31,155.28,8.1363881]
[1762463214446,17.48882769,155.31,155.29,8.8563881]
[1762463214647,9.78882769,155.31,155.3,8.1363881]
[1762463214847,17.48882769,155.31,155.3,8.1363881]
[1762463215148,7.7,155.32,155.3,8.8563881]
[1762463215348,7.7,155.32,155.31,6.43873543]
[1762463215554,7.7,155.32,155.31,14.57512353]
[1762463215970,7.7,155.32,155.31,15.29512353]
[1762463216671,6.7,155.32,155.31,14.57512353]
[1762463220264,6.7,155.32,155.31,15.29512353]
[1762463220460,7.7,155.35,155.31,31.39196211]
[1762463220779,7.7,155.35,155.32,8.1363881]
[1762463220963,7.7,155.35,155.33,6.43790639]
[1762463220964,8.39,155.35,155.33,6.43790639]
[1762463221367,18.61521579,155.34,155.3,20.592]
[1762463221760,0.69,155.33,155.3,20.592]
[1762463221954,7.7,155.32,155.3,20.592]
[1762463222160,7.7,155.32,155.3,28.7283881]
[1762463222356,7.7,155.32,155.31,8.1363881]
[1762463222557,9.78882769,155.37,155.31,8.8563881]
[1762463222869,9.78882769,155.37,155.29,54.73596552]
[1762463222870,0.1,155.4,155.36,8.1363881]
[1762463223179,17.40882769,155.4,155.39,14.57180865]
[1762463223381,7.62,155.4,155.39,14.57180865]
[1762463224583,0.1,155.4,155.39,15.29180865]
[1762463226282,0.1,155.4,155.39,14.57180865]
[1762463226485,0.1,155.4,155.39,15.29180865]
[1762463226669,0.1,155.4,155.38,8.1363881]
[1762463226864,0.79,155.4,155.37,14.57262417]
[1762463227173,7.7,155.39,155.37,14.57262417]
[1762463227771,0.1,155.4,155.38,0.7]
[1762463227992,0.1,155.4,155.38,8.1363881]
[1762463227993,0.77,155.4,155.38,8.1363881]
[1762463228498,0.77,155.4,155.36,6.43659172]
[1762463228681,0.77,155.4,155.36,14.57297982]
[1762463229494,0.77,155.4,155.37,8.1363881]
[1762463229666,0.1,155.4,155.37,8.1363881]
[1762463229870,0.1,155.4,155.38,8.1363881]
[1762463230284,0.1,155.4,155.39,8.1363881]
[1762463230481,0.1,155.4,155.38,8.1363881]
[1762463231594,0.1,155.4,155.38,14.57193345]
[1762463231805,0.1,155.4,155.39,8.1363881]
[1762463231995,0.1,155.4,155.38,14.57193345]
[1762463232695,0.1,155.4,155.39,8.1363881]
[1762463233681,0.1,155.4,155.39,14.57180865]
[1762463233881,0.1,155.4,155.38,6.43569683]
[1762463234198,0.8,155.4,155.38,14.57208493]
[1762463234393,0.8,155.4,155.38,6.43569683]
[1762463234787,0.1,155.4,155.38,6.43569683]
[1762463235100,0.1,155.4,155.37,14.57250331]
[1762463235304,9.78882769,155.38,155.34,14.57360848]
[1762463235477,17.92521579,155.38,155.34,6.43722038]
[1762463235802,0.7,155.37,155.34,6.43722038]
[1762463236006,7.68,155.36,155.34,6.43722038]
[1762463236775,7.68,155.36,155.35,8.1363881]
[1762463237084,7.68,155.36,155.34,14.57360848]
[1762463237802,7.68,155.36,155.35,14.57346566]
[1762463238203,7.68,155.36,155.35,15.26346566]
[1762463238607,7.68,155.38,155.35,31.35615957]
[1762463238806,7.68,155.38,155.37,8.1363881]
[1762463238993,7.68,155.38,155.36,8.1363881]
[1762463239190,10.48882769,155.37,155.35,61.9]
[1762463239387,18.62521579,155.37,155.32,61.9]
[1762463239588,9.78882769,155.35,155.32,61.9]
[1762463239906,7.68,155.34,155.31,68.33859937]
[1762463240113,8.38,155.34,155.31,68.33859937]
[1762463240290,10.48882769,155.33,155.3,6.43912302]
[1762463240490,9.78882769,155.33,155.3,6.43912302]
[1762463240690,10.48882769,155.33,155.3,6.43912302]
[1762463240914,10.48882769,155.33,155.29,14.57584222]
[1762463242121,10.48882769,155.33,155.29,30.67475393]
[1762463242488,10.46882769,155.38,155.32,8.1363881]
[1762463242687,7.68,155.37,155.33,8.1363881]
[1762463243003,8.36,155.37,155.33,8.1363881]
[1762463243190,7.68,155.37,155.34,8.1363881]
[1762463243397,7.68,155.37,155.35,8.1363881]
[1762463243594,7.68,155.37,155.36,8.1363881]
[1762463243906,7.68,155.37,155.36,14.57305133]
[1762463244098,7.68,155.37,155.36,15.24305133]
[1762463247393,0.1,155.4,155.36,63.51802557]
[1762463247587,0.1,155.4,155.39,8.1363881]
[1762463247918,0.1,155.4,155.39,14.57180865]
[1762463248101,0.66,155.45,155.39,15.24180865]
[1762463248409,0.66,155.45,155.44,8.1363881]
[1762463250016,0.66,155.45,155.44,15.23973858]
[1762463250205,0.66,155.45,155.44,14.56973858]
[1762463251419,0.66,155.45,155.44,15.23973858]
[1762463252330,7.68,155.48,155.44,31.3231148]
[1762463252503,7.68,155.48,155.47,8.1363881]
[1762463253317,7.68,155.48,155.44,7.10328438]
[1762463253499,7.68,155.48,155.46,8.1363881]
[1762463254093,7.68,155.48,155.46,14.56874493]
[1762463255211,7.68,155.48,155.47,8.1363881]
[1762463255612,0.1,155.52,155.47,8.8063881]
[1762463255799,7.68,155.5,155.48,0.67]
[1762463255997,7.68,155.5,155.49,8.1363881]
[1762463256299,0.1,155.52,155.49,14.56766985]
[1762463256505,0.1,155.52,155.5,8.1363881]
[1762463257810,0.68,155.51,155.46,0.67]
[1762463257991,9.78882769,155.5,155.47,8.1363881]
[1762463258200,7.68,155.49,155.46,14.5687109]
[1762463258392,7.68,155.49,155.43,5.17056665]
[1762463258393,9.78882769,155.48,155.43,5.17056665]
[1762463258594,15.63939434,155.48,155.43,5.17056665]
[1762463258823,0.68,155.47,155.43,5.17056665]
[1762463259029,9.78882769,155.48,155.44,5.17056665]
[1762463259196,9.78882769,155.48,155.43,5.17056665]
[1762463259394,0.68,155.47,155.43,5.17056665]
[1762463260223,0.68,155.47,155.43,11.6041282]
[1762463260423,9.78882769,155.46,155.43,11.6041282]
[1762463260602,7.68,155.45,155.43,11.6041282]
[1762463260998,0.7,155.44,155.4,11.60557308]
[1762463261214,9.78882769,155.43,155.4,11.60557308]
[1762463261919,7.68,155.45,155.41,5.17056665]
[1762463262128,7.68,155.45,155.43,5.17056665]
[1762463262425,7.68,155.45,155.43,6.43365099]
[1762463263236,9.78882769,155.44,155.42,6.43405564]
[1762463263520,10.48882769,155.44,155.41,5.17056665]
[1762463263711,0.7,155.43,155.39,5.17056665]
[1762463264023,7.68,155.42,155.39,5.17056665]
[1762463264318,7.68,155.42,155.4,11.60542542]
[1762463265726,10.48882769,155.41,155.36,5.17056665]
[1762463266019,12.85056665,155.42,155.39,5.17056665]
[1762463266020,7.68,155.42,155.39,5.17056665]
[1762463267039,7.68,155.42,155.4,5.17056665]
[1762463267210,7.68,155.42,155.41,5.17056665]
[1762463267601,7.68,155.42,155.41,11.60515901]
[1762463267934,0.7,155.46,155.41,27.69163993]
[1762463268106,7.68,155.45,155.43,5.17056665]
[1762463269001,0.7,155.44,155.42,5.17056665]